bitfinex/quotes_SOLUSD_20241001
["timestamp","ask_amount","ask_price","bid_price","bid_amount"]
[1727803959836,0.3279621,147.43,147.29,54.21166311]
[1727803960032,5.60904217,147.42,147.29,54.21166311]
[1727803960239,5.60904217,147.41,147.36,6.786]
[1727803960453,5.60904217,147.4,147.35,18.32225141]
[1727803960663,5.60904217,147.39,147.36,6.786]
[1727803960846,6.7861,147.36,147.3,6.7884]
[1727803961044,5.60904217,147.38,147.31,8.14547381]
[1727803961045,6.7856,147.38,147.31,8.14547381]
[1727803961346,0.3279621,147.43,147.35,23.7523]
[1727803961347,6.7838,147.41,147.35,23.7523]
[1727803961538,5.61442932,147.37,147.35,16.9659]
[1727803961739,0.3279621,147.43,147.33,6.7874]
[1727803961958,0.3279621,147.43,147.32,16.9696]
[1727803961959,5.61430916,147.42,147.34,1.35707628]
[1727803962136,12.39850916,147.41,147.34,8.14357628]
[1727803962342,12.39850916,147.4,147.35,16.9657]
[1727803962554,5.61430916,147.39,147.35,23.7521]
[1727803962755,5.61430916,147.39,147.36,1.35690873]
[1727803962952,5.61430916,147.38,147.37,6.7853]
[1727803963144,0.3279621,147.43,147.41,6.7836]
[1727803963351,0.3279621,147.43,147.42,6.7833]
[1727803963958,0.3279621,147.43,147.41,6.7837]
[1727803964146,0.3279621,147.43,147.39,23.7459]
[1727803964665,0.3279621,147.43,147.39,16.9613]
[1727803964850,7.1108621,147.43,147.38,6.7851]
[1727803965177,0.3279621,147.43,147.4,6.7842]
[1727803965348,0.3279621,147.43,147.37,1.55100379]
[1727803965349,0.3279621,147.43,147.41,16.9594]
[1727803965677,0.3279621,147.43,147.42,6.7833]
[1727803965844,0.3279621,147.43,147.42,26.7833]
[1727803966865,0.3279621,147.43,147.37,18.51410379]
[1727803967067,0.3279621,147.43,147.42,6.7833]
[1727803968672,0.3279621,147.43,147.39,23.7453]
[1727803969044,0.3279621,147.43,147.37,1.55100379]
[1727803969248,6.7838,147.41,147.37,1.55100379]
[1727803969478,0.3279621,147.43,147.37,1.55100379]
[1727803969479,7.1107621,147.43,147.37,8.33650379]
[1727803969650,0.3279621,147.43,147.37,25.29910379]
[1727803969852,0.3279621,147.43,147.38,6.785]
[1727803970351,0.3279621,147.43,147.39,1.35661781]
[1727803970568,0.3279621,147.43,147.37,1.55100379]
[1727803970743,0.3279621,147.43,147.38,1.3566539]
[1727803970946,0.3279621,147.43,147.39,16.9607]
[1727803971250,0.3279621,147.43,147.39,23.7454]
[1727803971786,6.7838,147.41,147.37,1.55100379]
[1727803972072,0.3279621,147.43,147.4,6.7841]
[1727803972247,0.3279621,147.43,147.37,1.55100379]
[1727803972669,0.3279621,147.43,147.39,16.9609]
[1727803972965,0.3279621,147.43,147.37,1.55100379]
[1727803973180,6.7851,147.38,147.37,1.55100379]
[1727803973543,17.2856621,147.43,147.37,1.55100379]
[1727803973746,6.7851,147.38,147.37,1.55100379]
[1727803973947,17.2856621,147.43,147.37,1.55100379]
[1727803974163,0.3279621,147.43,147.37,1.55100379]
[1727803974368,0.3279621,147.43,147.38,1.35666193]
[1727803974565,0.3279621,147.43,147.39,16.9607]
[1727803974767,0.3279621,147.43,147.42,6.7833]
[1727803976072,0.3279621,147.43,147.42,26.7833]
[1727803976446,0.3279621,147.43,147.42,6.7833]
[1727803977048,0.3279621,147.43,147.39,16.9607]
[1727803977249,0.3279621,147.43,147.3,38.67812835]
[1727803977250,0.3279621,147.43,147.36,23.7505]
[1727803977559,0.3279621,147.43,147.3,33.9423]
[1727803977760,0.3279621,147.43,147.33,16.9683]
[1727803978264,6.7851,147.39,147.33,23.7553]
[1727803978687,0.3279621,147.43,147.3,16.9719]
[1727803978688,24.2261,147.41,147.3,16.9719]
[1727803978849,24.2261,147.41,147.24,41.6702071]
[1727803978850,6.7884,147.31,147.24,33.958]
[1727803979170,6.7876,147.33,147.27,6.7898]
[1727803979380,16.9641,147.37,147.26,16.9757]
[1727803979675,16.9641,147.37,147.24,6.7914]
[1727803979676,2.0,147.36,147.24,6.7914]
[1727803979877,2.0,147.33,147.22,16.9807]
[1727803980059,6.7907,147.26,147.19,6.7939]
[1727803980268,7.189,147.3,147.14,16.9897]
[1727803980269,19.8983,147.29,147.14,16.9897]
[1727803980459,19.8983,147.29,147.13,6.7965]
[1727803980460,6.7941,147.19,147.13,6.7965]
[1727803980772,6.7941,147.19,147.07,54.21166311]
[1727803980773,6.794,147.19,147.12,23.7893]
[1727803980956,70.0,147.28,147.1,6.798]
[1727803980957,6.7951,147.17,147.1,6.798]
[1727803981155,7.189,147.2,147.08,16.9969]
[1727803981372,7.189,147.2,147.08,23.7958]
[1727803981555,6.7946,147.18,147.11,6.7975]
[1727803981756,6.7949,147.17,147.08,16.9969]
[1727803981976,7.189,147.2,147.08,16.9969]
[1727803982351,7.189,147.2,147.04,23.8021]
[1727803982352,2.0,147.18,147.04,23.8021]
[1727803982679,36.6291,147.19,147.04,17.0016]
[1727803982973,36.6291,147.19,146.98,54.21166311]
[1727803982974,6.7988,147.09,147.02,6.8017]
[1727803983172,16.99,147.15,147.0,17.0064]
[1727803983173,18.99,147.15,147.0,17.0064]
[1727803983474,6.8004,147.05,146.96,17.8417929]
[1727803983778,6.8023,147.01,146.96,0.8305929]
[1727803983988,6.8028,147.0,146.96,0.8305929]
[1727803984273,18.402,147.08,146.96,0.8305929]
[1727803984274,6.8024,147.01,146.96,0.8305929]
[1727803984484,18.402,147.08,146.96,0.8305929]
[1727803984662,6.8003,147.06,146.99,6.8031]
[1727803984856,18.402,147.08,146.96,0.8305929]
[1727803985060,17.0006,147.06,146.96,0.8305929]
[1727803985392,6.8028,147.0,146.96,0.8305929]
[1727803985583,6.8034,146.99,146.96,0.8305929]
[1727803985879,6.8027,147.0,146.96,0.8305929]
[1727803986068,17.004,147.03,146.91,17.0167]
[1727803986250,6.8047,146.96,146.87,17.0215]
[1727803986454,6.8042,146.97,146.87,17.0215]
[1727803986679,6.8035,146.99,146.9,17.0177]
[1727803986883,16.9991,147.07,146.97,6.8038]
[1727803987055,6.8026,147.01,146.93,17.014]
[1727803987258,16.9991,147.07,146.93,17.014]
[1727803987974,18.402,147.08,146.96,17.0108]
[1727803988356,18.402,147.08,146.93,6.8056]
[1727803988357,69.3959,147.08,146.93,6.8056]
[1727803988560,6.8032,146.99,146.92,23.8218]
[1727803988863,119.3959,147.08,146.92,23.8218]
[1727803988864,52.3977,147.08,146.92,17.0157]
[1727803989362,52.3977,147.08,146.93,1.36082049]
[1727803989363,17.0005,147.06,146.93,1.36082049]
[1727803989674,17.0005,147.06,146.92,17.0157]
[1727803989675,6.8028,147.0,146.94,8.1662237]
[1727803989988,6.8003,147.06,146.98,6.8036]
[1727803990163,6.8018,147.02,146.95,17.0118]
[1727803990358,6.8018,147.02,146.95,23.8167]
[1727803990571,6.8018,147.02,146.96,6.8045]
[1727803990973,6.8011,147.04,146.97,6.804]
[1727803991164,6.8011,147.04,146.89,54.21166311]
[1727803991165,18.402,147.08,146.98,17.0086]
[1727803991567,6.8009,147.04,146.98,17.0086]
[1727803991772,18.402,147.08,146.96,6.8044]
[1727803991773,6.8018,147.02,146.96,6.8044]
[1727803991976,6.8018,147.02,146.94,17.0132]
[1727803991977,6.8019,147.02,146.94,17.0132]
[1727803992282,6.8013,147.03,146.97,6.804]
[1727803992482,6.8008,147.05,146.98,6.8036]
[1727803992657,18.402,147.08,146.98,1.36047549]
[1727803992860,25.201,147.08,147.0,17.0062]
[1727803993080,18.402,147.08,146.97,20.0]
[1727803993283,6.8009,147.04,146.96,17.0108]
[1727803993462,1.18388716,147.13,147.06,6.7998]
[1727803993664,6.9794,147.16,147.03,20.0]
[1727803993990,6.9794,147.16,147.06,23.7992]
[1727803994180,6.9794,147.16,146.95,20.0]
[1727803994181,8.9794,147.16,146.95,20.0]
[1727803994361,8.9794,147.16,146.94,54.21166311]
[1727803994362,16.9921,147.13,146.99,6.8027]
[1727803994564,6.8016,147.03,146.96,6.8045]
[1727803994887,6.9794,147.16,147.0,17.0062]
[1727803994888,34.246549,147.16,147.0,17.0062]
[1727803995195,6.8009,147.04,146.97,6.8036]
[1727803995486,16.9967,147.09,146.96,17.0105]
[1727803995970,6.8,147.06,147.01,6.8022]
[1727803996172,50.9785,147.13,146.99,17.0076]
[1727803996567,6.8008,147.04,146.98,6.8035]
[1727803996766,16.9951,147.11,146.92,20.0]
[1727803997190,16.9977,147.08,146.92,20.0]
[1727803997486,16.9977,147.08,146.95,6.8048]
[1727803997487,17.0012,147.05,146.95,6.8048]
[1727803997667,33.9858,147.13,146.91,34.0322]
[1727803997668,6.801,147.04,146.99,6.8029]
[1727803997861,33.9858,147.13,146.91,34.0322]
[1727803998059,6.9794,147.16,147.05,17.0006]
[1727803998272,6.7981,147.1,147.05,17.0006]
[1727803998663,6.9794,147.16,147.05,17.0006]
[1727803998866,6.9794,147.16,147.05,6.7999]
[1727803999067,16.9895,147.15,147.04,17.0013]
[1727803999280,6.7981,147.1,147.04,23.802]
[1727803999672,16.993,147.12,147.0,17.0057]
[1727803999863,16.993,147.12,147.01,6.8018]
[1727803999864,6.7999,147.06,147.01,6.8018]
[1727804000065,58.9794,147.16,147.0,17.0057]
[1727804000264,58.9794,147.16,146.98,6.8035]
[1727804000265,16.9963,147.1,146.98,6.8035]
[1727804000465,6.8018,147.02,146.97,8.16446684]
[1727804000664,85.985,147.13,146.96,17.0104]
[1727804000665,20.0,147.1,146.96,17.0104]
[1727804000882,56.625,147.13,146.96,17.0104]
[1727804000883,6.8022,147.02,146.97,1.36069968]
[1727804001087,33.985,147.13,146.98,1.36052893]
[1727804001293,33.985,147.13,146.94,54.21166311]
[1727804001480,33.985,147.13,146.92,34.0308]
[1727804001481,6.8022,147.01,146.95,1.36052713]
[1727804001667,33.9947,147.09,146.94,23.8185]
[1727804001996,6.8031,147.0,146.94,23.8185]
[1727804002163,6.8038,146.98,146.92,6.8059]
[1727804002478,6.8047,146.96,146.91,17.0172]
[1727804002687,7.3462,147.02,146.94,6.8054]
[1727804002986,7.3462,147.02,146.93,17.0138]
[1727804003183,7.3462,147.02,146.89,17.0184]
[1727804003184,24.3507,147.02,146.89,17.0184]
[1727804003391,6.8027,147.0,146.95,6.805]
[1727804003593,7.3462,147.02,146.92,17.0159]
[1727804004286,24.3508,147.02,146.93,1.36082835]
[1727804004470,24.3508,147.02,146.92,17.0159]
[1727804004793,24.3508,147.02,146.85,34.0467]
[1727804005003,17.8265,147.03,146.96,17.0104]
[1727804005289,17.8265,147.03,146.89,54.21166311]
[1727804005602,17.8265,147.03,146.92,17.0149]
[1727804005890,17.8265,147.03,146.95,17.0121]
[1727804006191,17.8265,147.03,146.95,16.67552]
[1727804006409,17.8265,147.03,146.85,40.6581009]
[1727804006570,17.0089,146.99,146.89,17.0195]
[1727804006891,17.0089,146.99,146.82,80.08515601]
[1727804006892,34.8304,147.03,146.93,17.0137]
[1727804007062,17.8265,147.03,146.88,54.21166311]
[1727804007267,24.6282,147.03,146.98,6.8036]
[1727804007480,17.8265,147.03,146.97,17.0093]
[1727804007784,17.8265,147.03,146.91,54.21166311]
[1727804008091,17.8265,147.03,146.97,6.804]
[1727804008092,6.8018,147.02,146.97,6.804]
[1727804008305,24.6278,147.03,146.98,6.8035]
[1727804008463,7.0419,147.08,146.92,20.0]
[1727804008665,7.0419,147.08,146.97,17.0098]
[1727804008666,24.0402,147.08,146.97,17.0098]
[1727804008870,6.8014,147.03,146.98,6.8036]
[1727804009073,24.0402,147.08,146.97,17.0098]
[1727804009276,6.8009,147.04,146.99,6.8031]
[1727804009583,6.8009,147.04,146.94,34.0257]
[1727804009584,24.0402,147.08,146.94,34.0257]
[1727804010197,24.0402,147.08,146.99,6.8031]
[1727804010420,7.09419669,147.09,146.94,88.23736311]
[1727804010588,7.09419669,147.09,147.08,6.799]
[1727804011070,6.8996,147.15,147.09,6.7981]
[1727804011276,6.7972,147.12,147.06,23.7992]
[1727804011891,6.8996,147.15,147.09,16.9959]
[1727804012282,6.7958,147.15,147.09,25.15368024]
[1727804012477,6.7963,147.14,147.09,16.9959]
[1727804012693,17.1472,147.17,147.05,20.0]
[1727804012874,6.7976,147.11,147.05,37.0002]
[1727804013073,6.798,147.11,147.02,20.0]
[1727804013281,16.9897,147.15,147.02,26.8013]
[1727804013488,16.9934,147.12,146.99,6.8031]
[1727804013698,20.0,147.16,146.97,17.0095]
[1727804013998,16.9966,147.09,146.97,17.0095]
[1727804014177,6.8017,147.03,146.97,23.8135]
[1727804014372,7.2296,147.08,146.97,17.0095]
[1727804014778,6.8023,147.01,146.96,6.8042]
[1727804015083,7.2296,147.08,146.91,54.21166311]
[1727804015084,7.2296,147.08,146.99,17.0074]
[1727804015281,6.8013,147.03,146.98,6.8036]
[1727804015480,7.2296,147.08,146.99,6.803]
[1727804015903,7.2296,147.08,147.0,6.8022]
[1727804016112,16.9947,147.11,146.95,34.0243]
[1727804016113,6.7977,147.11,147.05,6.7999]
[1727804016273,7.0452,147.12,147.06,6.7996]
[1727804016478,7.0452,147.12,147.04,17.0019]
[1727804016479,13.8424,147.12,147.07,6.799]
[1727804016690,7.0452,147.12,147.07,6.7994]
[1727804017008,17.1472,147.17,147.07,16.9986]
[1727804017178,6.7962,147.14,147.08,1.35945571]
[1727804017379,17.1472,147.17,147.12,6.7971]
[1727804017584,17.1472,147.17,147.11,6.7976]
[1727804017787,17.1472,147.17,147.11,1.35926863]
[1727804018088,6.7955,147.16,147.1,23.7927]
[1727804018287,16.9816,147.22,147.1,23.7927]
[1727804018589,6.7949,147.17,147.11,6.7976]
[1727804018781,6.7954,147.16,147.11,6.7976]
[1727804018987,16.9816,147.22,147.1,16.995]
[1727804019205,6.7958,147.15,147.1,16.995]
[1727804019905,6.7976,147.11,147.05,6.8003]
[1727804020104,16.9885,147.16,147.03,51.0065]
[1727804020281,16.9885,147.16,147.03,23.8031]
[1727804020479,6.799,147.08,147.03,17.0022]
[1727804020713,16.9919,147.13,146.97,88.23006311]
[1727804020890,6.7996,147.07,146.99,17.0071]
[1727804021088,16.9953,147.1,146.99,17.0071]
[1727804021284,6.801,147.04,146.99,17.0071]
[1727804021482,6.8007,147.05,146.99,23.8101]
[1727804021883,6.8007,147.05,146.91,70.36093547]
[1727804021884,16.9985,147.08,146.95,17.0114]
[1727804022307,33.9894,147.11,146.95,17.0114]
[1727804022607,6.8022,147.02,146.9,34.0352]
[1727804022788,6.8022,147.02,146.94,17.0126]
[1727804022789,6.8018,147.02,146.94,17.0126]
[1727804023189,16.996,147.1,146.95,20.0]
[1727804023585,16.996,147.1,146.99,17.0074]
[1727804023791,16.996,147.1,147.0,6.8025]
[1727804023792,6.8004,147.05,147.0,6.8025]
[1727804024520,6.8013,147.03,146.98,6.8033]
[1727804024689,6.8009,147.04,146.98,6.8033]
[1727804024888,6.8032,146.99,146.94,6.805]
[1727804025088,33.9985,147.07,146.92,17.0151]
[1727804025089,17.0024,147.04,146.92,17.0151]
[1727804025716,33.9985,147.07,146.97,6.804]
[1727804025717,6.8018,147.02,146.97,6.804]
[1727804025891,50.9975,147.07,146.88,62.54123067]
[1727804026211,33.9985,147.07,146.88,62.54123067]
[1727804026417,22.09370852,147.1,146.94,34.0262]
[1727804026418,38.4823504,147.1,146.94,34.0262]
[1727804026615,16.9966,147.09,146.98,17.008]
[1727804026788,6.8028,147.0,146.95,23.8169]
[1727804026990,6.8028,147.0,146.96,6.8045]
[1727804027213,17.0064,147.01,146.91,25.34576756]
[1727804027402,17.0025,147.04,146.93,17.014]
[1727804027821,6.8045,146.97,146.91,6.8064]
[1727804028001,17.0054,147.02,146.91,6.8064]
[1727804028002,6.8045,146.96,146.91,6.8064]
[1727804028521,6.8042,146.97,146.92,6.8064]
[1727804028704,6.8037,146.98,146.93,6.8058]
[1727804028896,17.0011,147.05,146.95,17.0125]
[1727804029107,6.8032,146.99,146.95,17.0125]
[1727804029318,6.8027,147.0,146.95,17.0125]
[1727804029627,17.0044,147.03,146.91,17.0163]
[1727804029919,6.8049,146.96,146.91,23.8231]
[1727804030296,17.0064,147.01,146.91,17.0163]
[1727804030493,17.0086,146.99,146.88,25.34986756]
[1727804031203,6.8058,146.94,146.89,6.8078]
[1727804031402,17.0086,146.99,146.88,25.34986756]
[1727804031403,6.8051,146.95,146.88,25.34986756]
[1727804031602,6.8051,146.95,146.86,34.0452]
[1727804031603,6.8077,146.9,146.86,1.36112071]
[1727804031826,6.8077,146.9,146.85,23.8333]
[1727804032115,6.8078,146.89,146.85,17.024]
[1727804032326,6.8078,146.89,146.82,34.8852929]
[1727804032327,6.8088,146.87,146.82,17.8575929]
[1727804032506,6.8096,146.86,146.82,17.8575929]
[1727804032697,6.81,146.85,146.82,0.8305929]
[1727804032896,17.0178,146.91,146.82,0.8305929]
[1727804033099,6.8091,146.87,146.82,0.8305929]
[1727804033400,17.0178,146.91,146.82,0.8305929]
[1727804033718,6.8097,146.85,146.82,0.8305929]
[1727804034020,6.8105,146.83,146.82,0.8305929]
[1727804034521,17.8713,146.87,146.82,0.8305929]
[1727804035100,6.8105,146.83,146.82,0.8305929]
[1727804036604,6.8096,146.85,146.82,0.8305929]
[1727804036921,6.8101,146.84,146.82,0.8305929]
[1727804037432,6.8096,146.86,146.82,0.8305929]
[1727804037817,6.8097,146.85,146.82,0.8305929]
[1727804038226,24.6804,146.87,146.82,0.8305929]
[1727804038411,7.2028,146.88,146.83,6.8104]
[1727804038925,14.0111,146.88,146.83,6.8105]
[1727804039305,7.2028,146.88,146.82,0.8305929]
[1727804039813,6.8087,146.87,146.82,7.6415929]
[1727804040014,7.2028,146.88,146.83,6.8103]
[1727804040214,6.8095,146.86,146.82,0.8305929]
[1727804040403,6.8105,146.83,146.82,0.8305929]
[1727804041306,6.8101,146.84,146.82,0.8305929]
[1727804041512,7.2028,146.88,146.82,0.8305929]
[1727804041713,6.8105,146.83,146.82,0.8305929]
[1727804042018,6.8105,146.84,146.82,0.8305929]
[1727804042334,6.8105,146.83,146.82,0.8305929]
[1727804042715,6.81,146.85,146.82,0.8305929]
[1727804043434,7.2028,146.88,146.82,0.8305929]
[1727804043640,14.65630479,146.93,146.82,0.8305929]
[1727804043819,14.65630479,146.93,146.84,17.0241]
[1727804044137,14.65630479,146.93,146.82,2.38740688]
[1727804044138,24.5638,146.93,146.82,2.38740688]
[1727804044337,6.8093,146.86,146.82,2.38740688]
[1727804044518,17.0203,146.89,146.82,2.38740688]
[1727804044831,6.8097,146.85,146.82,0.8305929]
[1727804045216,6.8102,146.84,146.82,0.8305929]
[1727804045427,6.8105,146.83,146.82,0.8305929]
[1727804046416,6.8101,146.84,146.82,0.8305929]
[1727804046622,6.8105,146.83,146.82,0.8305929]
[1727804047031,17.0226,146.87,146.82,0.8305929]
[1727804047334,6.8102,146.84,146.82,0.8305929]
[1727804047632,6.8097,146.85,146.82,0.8305929]
[1727804047837,6.8091,146.87,146.82,7.6411929]
[1727804048021,6.8105,146.83,146.82,0.8305929]
[1727804048934,9.81521734,146.92,146.82,0.8305929]
[1727804049238,6.8074,146.9,146.85,6.8092]
[1727804049444,6.8094,146.86,146.82,2.38740688]
[1727804049734,6.8069,146.91,146.82,2.38740688]
[1727804049911,7.5482,146.93,146.84,17.0253]
[1727804050116,7.0863389,146.95,146.91,17.0165]
[1727804050415,6.8031,147.0,146.94,6.8054]
[1727804050612,17.589,147.01,146.94,17.0132]
[1727804050812,17.589,147.01,146.91,1.55586024]
[1727804051013,17.589,147.01,146.85,1.36130288]
[1727804051214,6.8027,147.0,146.94,6.8051]
[1727804051441,17.0014,147.05,146.95,6.8049]
[1727804051640,17.0014,147.05,146.93,17.0145]
[1727804051935,6.8046,146.96,146.89,17.0186]
[1727804052236,17.0079,147.0,146.86,1.55638995]
[1727804052412,6.8059,146.94,146.88,6.8082]
[1727804052611,20.0,147.03,146.86,1.55638995]
[1727804052812,6.8068,146.92,146.86,1.55638995]
[1727804053119,6.8068,146.92,146.87,6.8085]
[1727804053319,17.0106,146.97,146.86,1.55638995]
[1727804053534,6.8059,146.94,146.89,6.8077]
[1727804053830,24.13172758,147.01,146.89,18.57457208]
[1727804054027,6.8073,146.9,146.89,1.55607208]
[1727804054237,6.8068,146.92,146.86,1.36145179]
[1727804054440,9.81521734,147.0,146.86,8.36548995]
[1727804054625,17.0092,146.98,146.86,1.55638995]
[1727804054817,6.8059,146.93,146.87,6.8086]
[1727804055137,17.0092,146.98,146.88,6.808]
[1727804055138,6.8055,146.94,146.88,6.808]
[1727804055314,6.8055,146.94,146.86,18.57818995]
[1727804055315,9.81521734,147.0,146.86,1.55638995]
[1727804055517,6.8087,146.87,146.86,1.55638995]
[1727804055923,17.0162,146.92,146.82,0.8305929]
[1727804056420,17.0196,146.89,146.82,0.8305929]
[1727804056636,6.8102,146.84,146.82,0.8305929]
[1727804056825,17.0196,146.89,146.82,0.8305929]
[1727804056826,6.8097,146.85,146.82,0.8305929]
[1727804057015,17.0196,146.89,146.82,0.8305929]
[1727804057524,6.81,146.85,146.82,0.8305929]
[1727804057728,17.0227,146.87,146.82,0.8305929]
[1727804057925,6.8105,146.83,146.82,0.8305929]
[1727804058823,6.8102,146.84,146.82,0.8305929]
[1727804059239,40.8778,146.94,146.82,0.8305929]
[1727804059442,6.8073,146.9,146.85,6.8096]
[1727804059663,6.8078,146.89,146.84,23.8344]
[1727804059828,0.62212501,147.0,146.85,55.76815904]
[1727804059829,7.3529,147.0,146.85,55.76815904]
[1727804060146,7.3529,147.0,146.92,17.0157]
[1727804060329,7.3529,147.0,146.86,20.0]
[1727804060526,7.3529,147.0,146.89,17.0194]
[1727804060735,6.8054,146.95,146.89,23.8268]
[1727804060932,7.3529,147.0,146.88,6.8081]
[1727804061129,6.8058,146.94,146.89,6.8077]
[1727804061421,7.3529,147.0,146.87,1.55628398]
[1727804061752,18.8386,147.02,146.94,17.0129]
[1727804061919,6.8041,146.97,146.9,17.0174]
[1727804062128,18.8386,147.02,146.9,17.0174]
[1727804062429,18.8386,147.02,146.92,6.8063]
[1727804062430,6.8036,146.98,146.92,6.8063]
[1727804062629,6.8031,146.99,146.94,6.8054]
[1727804062835,17.0056,147.01,146.91,1.55586024]
[1727804063033,43.82661734,147.01,146.82,55.04225601]
[1727804063237,6.8073,146.91,146.85,23.8329]
[1727804063462,6.8087,146.87,146.84,1.55660193]
[1727804063742,6.8093,146.86,146.84,1.55660193]
[1727804063942,7.1273,146.95,146.82,0.8305929]
[1727804064125,6.8096,146.85,146.82,0.8305929]
[1727804064324,16.94251734,146.95,146.82,0.8305929]
[1727804064325,6.8105,146.83,146.82,0.8305929]
[1727804064518,6.8097,146.85,146.82,0.8305929]
[1727804064723,6.8102,146.84,146.82,0.8305929]
[1727804064932,6.8105,146.83,146.82,0.8305929]
[1727804065647,17.0197,146.89,146.82,0.8305929]
[1727804065942,6.8101,146.84,146.82,0.8305929]
[1727804066517,6.8105,146.83,146.82,0.8305929]
[1727804066919,6.8098,146.85,146.82,0.8305929]
[1727804067119,17.0197,146.89,146.82,0.8305929]
[1727804067337,6.8092,146.86,146.82,0.8305929]
[1727804067645,34.0318,146.93,146.82,0.8305929]
[1727804068128,17.0183,146.91,146.82,0.8305929]
[1727804068330,7.1273,146.95,146.82,0.8305929]
[1727804068748,7.1273,146.95,146.88,6.8082]
[1727804068951,7.1273,146.95,146.86,17.023]
[1727804068952,7.3906,147.01,146.87,20.0]
[1727804069125,6.8027,147.0,146.95,6.8048]
[1727804069320,7.11552884,147.05,146.94,17.0134]
[1727804069620,6.8009,147.04,146.98,6.8032]
[1727804069823,6.8013,147.03,146.98,6.8032]
[1727804070237,24.3893,147.07,146.96,17.0102]
[1727804070938,6.7995,147.07,146.99,17.0074]
[1727804071138,6.7995,147.07,146.89,54.21166311]
[1727804071139,6.799,147.09,147.04,6.8007]
[1727804071345,13.91747411,147.11,147.05,8.16017332]
[1727804071527,17.188,147.16,147.06,1.35967757]
[1727804071722,17.188,147.16,147.05,23.8008]
[1727804071943,17.188,147.16,147.06,1.55427328]
[1727804072336,6.7971,147.12,147.06,8.35407328]
[1727804072533,17.188,147.16,147.06,1.55427328]
[1727804072730,17.188,147.16,147.07,6.7991]
[1727804072929,6.7965,147.14,147.07,1.55416759]
[1727804073155,16.9868,147.18,147.08,6.7988]
[1727804073449,6.7967,147.13,147.07,8.35356759]
[1727804074050,6.7981,147.1,147.07,1.55416759]
[1727804074229,16.99,147.15,147.07,1.55416759]
[1727804074429,6.797,147.13,147.07,1.55416759]
[1727804074754,6.8852,147.19,147.07,1.55416759]
[1727804074755,6.7958,147.15,147.08,1.35940932]
[1727804074933,6.7954,147.16,147.1,6.7979]
[1727804075134,6.7962,147.14,147.1,1.35917135]
[1727804075349,6.7962,147.14,147.09,1.55395627]
[1727804075350,23.8709,147.19,147.09,8.35235627]
[1727804075644,6.7958,147.15,147.1,1.55385063]
[1727804076045,23.8709,147.19,147.1,1.55385063]
[1727804076046,6.7953,147.16,147.1,8.35165063]
[1727804076459,33.9663,147.21,147.1,1.55385063]
[1727804076650,41.08056912,147.21,147.1,1.55385063]
[1727804076951,41.08056912,147.21,147.04,17.0021]
[1727804076952,6.7986,147.09,147.04,17.0021]
[1727804077156,6.7991,147.08,147.04,1.55448468]
[1727804077736,6.7995,147.07,147.04,1.55448468]
[1727804077940,6.8004,147.05,147.01,17.0056]
[1727804078155,16.9951,147.11,146.99,6.8031]
[1727804078464,6.7993,147.08,147.0,1.55490767]
[1727804079139,6.7993,147.08,147.02,6.8016]
[1727804079336,41.70269413,147.21,147.05,16.9999]
[1727804079635,58.06326912,147.21,147.1,16.9948]
[1727804079847,6.7964,147.14,147.1,16.9948]
[1727804080364,6.7943,147.19,147.13,6.7966]
[1727804080557,18.8527,147.23,147.12,16.992]
[1727804080753,6.7955,147.16,147.11,6.7972]
[1727804081143,6.7955,147.16,147.08,16.9966]
[1727804081361,6.7956,147.16,147.08,16.9966]
[1727804081548,6.7956,147.16,147.1,6.7976]
[1727804081855,16.9882,147.17,147.06,8.35417328]
[1727804082060,33.9662,147.21,147.07,1.55416759]
[1727804082564,16.9912,147.14,147.07,1.55416759]
[1727804082747,6.799,147.08,147.07,1.55416759]
[1727804082937,16.994,147.11,146.99,17.0078]